[Event "*** Titled Tuesday Blitz"]
[Site "Chess.com"]
[Date "2020.05.05"]
[Round "4"]
[White "hongnhung1234"]
[Black "Noam_Vitenberg"]
[Result "1-0"]
[WhiteElo "2234"]
[BlackElo "2484"]
[TimeControl "180+1"]
[EndTime "10:40:22 PDT"]
[Termination "hongnhung1234 won by resignation"]

1. e4 {[%clk 0:03:00.9]} 1... e5 {[%clk 0:02:57.2]} 2. Nf3 {[%clk 0:03:00.1]}
2... Nc6 {[%clk 0:02:55.9]} 3. d4 {[%clk 0:03:00.3]} 3... exd4 {[%clk 0:02:55]}
4. Nxd4 {[%clk 0:03:01.2]} 4... Nf6 {[%clk 0:02:50.5]} 5. Nc3 {[%clk 0:03:00.9]}
5... Bb4 {[%clk 0:02:48.5]} 6. Nxc6 {[%clk 0:03:00.8]} 6... bxc6 {[%clk
0:02:48.7]} 7. Bd3 {[%clk 0:03:01]} 7... d5 {[%clk 0:02:48.3]} 8. exd5 {[%clk
0:03:01.9]} 8... O-O {[%clk 0:02:47.3]} 9. O-O {[%clk 0:03:02.2]} 9... Bg4
{[%clk 0:02:45.3]} 10. f3 {[%clk 0:02:51.8]} 10... Bh5 {[%clk 0:02:44.2]} 11.
Be3 {[%clk 0:02:50.2]} 11... Re8 {[%clk 0:02:36.8]} 12. Bf2 {[%clk 0:02:49.6]}
12... cxd5 {[%clk 0:02:30.4]} 13. Bb5 {[%clk 0:02:35.4]} 13... Re6 {[%clk
0:02:26.3]} 14. a3 {[%clk 0:02:28.6]} 14... Bd6 {[%clk 0:02:09.7]} 15. Bc6
{[%clk 0:02:16.8]} 15... Bxh2+ {[%clk 0:02:06.7]} 16. Kxh2 {[%clk 0:02:14.9]}
16... Rxc6 {[%clk 0:02:07.3]} 17. Qd4 {[%clk 0:02:11.3]} 17... Rc4 {[%clk
0:02:04]} 18. Qe5 {[%clk 0:02:05.6]} 18... Qd7 {[%clk 0:02:00]} 19. Rfe1 {[%clk
0:01:55.1]} 19... d4 {[%clk 0:01:37.4]} 20. Ne4 {[%clk 0:01:48.2]} 20... Rxc2
{[%clk 0:01:16.8]} 21. Nxf6+ {[%clk 0:01:21.8]} 21... gxf6 {[%clk 0:01:15.2]}
22. Qxh5 {[%clk 0:01:11.1]} 22... Rxf2 {[%clk 0:01:14.1]} 23. Re4 {[%clk
0:01:05]} 23... f5 {[%clk 0:01:04.6]} 24. Qg5+ {[%clk 0:00:57.7]} 24... Kh8
{[%clk 0:00:58.7]} 25. Qf6+ {[%clk 0:00:56]} 25... Kg8 {[%clk 0:00:58.7]} 26.
Rxd4 {[%clk 0:00:56]} 26... Qe6 {[%clk 0:00:51.9]} 27. Qg5+ {[%clk 0:00:50.4]}
27... Qg6 {[%clk 0:00:50.8]} 28. Rd8+ {[%clk 0:00:42.3]} 28... Kg7 {[%clk
0:00:24.3]} 29. Qxg6+ {[%clk 0:00:39.1]} 29... hxg6 {[%clk 0:00:24]} 30. Rxa8
{[%clk 0:00:39]} 30... Rxb2 {[%clk 0:00:23.2]} 31. Rxa7 {[%clk 0:00:39.2]} 31...
c5 {[%clk 0:00:22.9]} 32. Rc1 {[%clk 0:00:39.1]} 32... g5 {[%clk 0:00:22.2]} 33.
Rxc5 {[%clk 0:00:38.6]} 33... Kg6 {[%clk 0:00:20.2]} 34. Raa5 {[%clk 0:00:37.4]}
34... g4 {[%clk 0:00:15.7]} 35. fxg4 {[%clk 0:00:35.8]} 35... f4 {[%clk
0:00:15.2]} 36. Rf5 {[%clk 0:00:33.5]} 36... Rf2 {[%clk 0:00:10.5]} 37. Kg1
{[%clk 0:00:32.4]} 1-0

[Event "*** Titled Tuesday Blitz"]
[Site "Chess.com"]
[Date "2020.05.05"]
[Round "4"]
[White "Mikhail_Golubev"]
[Black "AnonymusDonkey"]
[Result "1-0"]
[WhiteElo "2522"]
[BlackElo "2311"]
[TimeControl "180+1"]
[EndTime "10:40:22 PDT"]
[Termination "Mikhail_Golubev won by resignation"]

1. e4 {[%clk 0:03:00.9]} 1... c5 {[%clk 0:02:59.4]} 2. Nf3 {[%clk 0:03:00.4]}
2... d6 {[%clk 0:02:58.3]} 3. d4 {[%clk 0:03:00.6]} 3... cxd4 {[%clk 0:02:59.2]}
4. Nxd4 {[%clk 0:03:00.9]} 4... Nf6 {[%clk 0:02:58.7]} 5. Nc3 {[%clk 0:03:01]}
5... a6 {[%clk 0:02:59.2]} 6. Bc4 {[%clk 0:03:00.5]} 6... e6 {[%clk 0:02:58.2]}
7. Bb3 {[%clk 0:03:00.2]} 7... Nbd7 {[%clk 0:02:53.4]} 8. f4 {[%clk 0:02:57.6]}
8... Nc5 {[%clk 0:02:51.9]} 9. Qf3 {[%clk 0:02:57.7]} 9... b5 {[%clk 0:02:44.8]}
10. f5 {[%clk 0:02:57.4]} 10... e5 {[%clk 0:02:38.1]} 11. Nc6 {[%clk 0:02:56.9]}
11... Qc7 {[%clk 0:02:12.8]} 12. Nd5 {[%clk 0:02:51.1]} 12... Nxd5 {[%clk
0:01:57.4]} 13. Bxd5 {[%clk 0:02:50.8]} 13... Bb7 {[%clk 0:01:57.3]} 14. Nb4
{[%clk 0:02:48.6]} 14... Be7 {[%clk 0:01:39.4]} 15. Bxb7 {[%clk 0:02:45.7]}
15... Qxb7 {[%clk 0:01:40.3]} 16. Nd5 {[%clk 0:02:44.2]} 16... Nd7 {[%clk
0:01:31.3]} 17. Be3 {[%clk 0:01:51.4]} 17... Rc8 {[%clk 0:01:19.9]} 18. O-O-O
{[%clk 0:01:34]} 18... Nf6 {[%clk 0:00:49.7]} 19. Kb1 {[%clk 0:01:15]} 19... Rc4
{[%clk 0:00:42.6]} 20. b3 {[%clk 0:00:43.7]} 20... Rxe4 {[%clk 0:00:17.3]} 21.
Nxf6+ {[%clk 0:00:19.8]} 21... gxf6 {[%clk 0:00:17.3]} 22. Rhe1 {[%clk
0:00:13.7]} 22... d5 {[%clk 0:00:16.1]} 23. Qg3 {[%clk 0:00:11.1]} 23... d4
{[%clk 0:00:12.3]} 24. Qg7 {[%clk 0:00:10.5]} 24... Rf8 {[%clk 0:00:12.4]} 25.
Bh6 {[%clk 0:00:09.6]} 25... Rxe1 {[%clk 0:00:11]} 26. Rxe1 {[%clk 0:00:09.4]}
26... Qxg2 {[%clk 0:00:09.6]} 27. Qxg2 {[%clk 0:00:08.5]} 1-0

[Event "*** Titled Tuesday Blitz"]
[Site "Chess.com"]
[Date "2020.05.05"]
[Round "4"]
[White "Andreikka"]
[Black "stoleriu"]
[Result "1-0"]
[WhiteElo "2951"]
[BlackElo "2561"]
[TimeControl "180+1"]
[EndTime "10:40:25 PDT"]
[Termination "Andreikka won by resignation"]

1. c4 {[%clk 0:03:00.9]} 1... e5 {[%clk 0:03:00.1]} 2. Nc3 {[%clk 0:03:00.6]}
2... Nc6 {[%clk 0:03:00.2]} 3. Nf3 {[%clk 0:03:00.9]} 3... Nf6 {[%clk
0:02:58.9]} 4. e4 {[%clk 0:03:00.8]} 4... Bc5 {[%clk 0:02:54.6]} 5. Nxe5 {[%clk
0:03:00.5]} 5... Nxe5 {[%clk 0:02:28]} 6. d4 {[%clk 0:03:00.1]} 6... Bxd4 {[%clk
0:02:27.6]} 7. Qxd4 {[%clk 0:02:59.2]} 7... d6 {[%clk 0:02:28.5]} 8. Bg5 {[%clk
0:02:53.4]} 8... h6 {[%clk 0:02:27.4]} 9. Bh4 {[%clk 0:02:53.7]} 9... g5 {[%clk
0:02:24.1]} 10. Bg3 {[%clk 0:02:53.5]} 10... Be6 {[%clk 0:02:24.6]} 11. Bxe5
{[%clk 0:02:41.8]} 11... dxe5 {[%clk 0:02:18.3]} 12. Qxe5 {[%clk 0:02:42.7]}
12... c6 {[%clk 0:02:15.1]} 13. Be2 {[%clk 0:02:37.6]} 13... Qe7 {[%clk
0:02:09]} 14. O-O-O {[%clk 0:02:32.8]} 14... O-O {[%clk 0:02:05.8]} 15. h4
{[%clk 0:02:31.6]} 15... g4 {[%clk 0:02:02.4]} 16. Qf4 {[%clk 0:02:29.2]} 16...
Kh7 {[%clk 0:01:45]} 17. e5 {[%clk 0:02:26.2]} 17... Ng8 {[%clk 0:01:42.2]} 18.
Bd3+ {[%clk 0:01:43.7]} 18... Kh8 {[%clk 0:01:42.1]} 19. Ne4 {[%clk 0:01:44.2]}
19... Kg7 {[%clk 0:01:27.2]} 20. Ng3 {[%clk 0:01:33.1]} 20... Rad8 {[%clk
0:01:17.9]} 21. Qe4 {[%clk 0:01:30.2]} 21... f5 {[%clk 0:00:44.5]} 22. exf6+
{[%clk 0:01:26.4]} 22... Nxf6 {[%clk 0:00:43]} 23. Qg6+ {[%clk 0:01:09.5]} 23...
Kh8 {[%clk 0:00:42.5]} 24. Qxh6+ {[%clk 0:01:09.9]} 24... Kg8 {[%clk 0:00:43.1]}
25. Rhe1 {[%clk 0:01:09]} 25... Qf7 {[%clk 0:00:39.9]} 26. Qg5+ {[%clk
0:01:06.2]} 26... Kh8 {[%clk 0:00:38.3]} 27. Bg6 {[%clk 0:00:55.7]} 27... Rxd1+
{[%clk 0:00:34.3]} 28. Rxd1 {[%clk 0:00:56.6]} 28... Qe7 {[%clk 0:00:32]} 29.
Re1 {[%clk 0:00:52.9]} 29... Qb4 {[%clk 0:00:23.6]} 30. Rxe6 {[%clk 0:00:38.8]}
30... Qxc4+ {[%clk 0:00:20.6]} 31. Bc2 {[%clk 0:00:37.8]} 31... Qxe6 {[%clk
0:00:21]} 32. Qh6+ {[%clk 0:00:37.6]} 32... Kg8 {[%clk 0:00:21.4]} 33. Bb3
{[%clk 0:00:38]} 33... Kf7 {[%clk 0:00:13]} 1-0

[Event "*** Titled Tuesday Blitz"]
[Site "Chess.com"]
[Date "2020.05.05"]
[Round "4"]
[White "AustrianFalcon"]
[Black "Chepaschess"]
[Result "0-1"]
[WhiteElo "2497"]
[BlackElo "2736"]
[TimeControl "180+1"]
[EndTime "10:40:25 PDT"]
[Termination "Chepaschess won by resignation"]

1. d4 {[%clk 0:03:00.9]} 1... Nf6 {[%clk 0:02:59.1]} 2. c4 {[%clk 0:02:56.4]}
2... g6 {[%clk 0:02:58.9]} 3. Nc3 {[%clk 0:02:56.1]} 3... d5 {[%clk 0:02:59]} 4.
cxd5 {[%clk 0:02:55.5]} 4... Nxd5 {[%clk 0:02:59.9]} 5. e4 {[%clk 0:02:55.2]}
5... Nxc3 {[%clk 0:03:00.6]} 6. bxc3 {[%clk 0:02:56.1]} 6... Bg7 {[%clk
0:03:01.4]} 7. Nf3 {[%clk 0:02:52.5]} 7... c5 {[%clk 0:02:59.1]} 8. h3 {[%clk
0:02:45.4]} 8... O-O {[%clk 0:02:53.8]} 9. Be2 {[%clk 0:02:39.9]} 9... cxd4
{[%clk 0:02:39.6]} 10. cxd4 {[%clk 0:02:37.1]} 10... Nc6 {[%clk 0:02:40.2]} 11.
Be3 {[%clk 0:02:36]} 11... f5 {[%clk 0:02:40.2]} 12. O-O {[%clk 0:02:33.6]}
12... f4 {[%clk 0:02:25.6]} 13. Bc4+ {[%clk 0:02:24.9]} 13... Kh8 {[%clk
0:02:22.4]} 14. Bd2 {[%clk 0:02:24]} 14... Nxd4 {[%clk 0:02:18.8]} 15. Bc3
{[%clk 0:02:22.8]} 15... Nxf3+ {[%clk 0:02:07]} 16. Qxf3 {[%clk 0:02:23.7]}
16... Bd7 {[%clk 0:02:07.1]} 17. Rad1 {[%clk 0:02:01.5]} 17... Qc7 {[%clk
0:02:04.3]} 18. Bxg7+ {[%clk 0:01:55.5]} 18... Kxg7 {[%clk 0:02:03.6]} 19. Qc3+
{[%clk 0:01:54]} 19... Kh6 {[%clk 0:02:01.9]} 20. Qd4 {[%clk 0:01:34.2]} 20...
Rad8 {[%clk 0:01:55.1]} 21. Bd5 {[%clk 0:01:02.6]} 21... e6 {[%clk 0:01:46.7]}
22. g4 {[%clk 0:00:34]} 22... exd5 {[%clk 0:01:40.2]} 23. g5+ {[%clk 0:00:30.8]}
23... Kxg5 {[%clk 0:01:18.9]} 24. Qg7 {[%clk 0:00:31.7]} 24... dxe4 {[%clk
0:01:02.2]} 25. h4+ {[%clk 0:00:19.3]} 25... Kg4 {[%clk 0:00:52.5]} 26. Rd5
{[%clk 0:00:14.7]} 26... Rf5 {[%clk 0:00:37.2]} 27. Rxf5 {[%clk 0:00:14.3]}
27... Kxf5 {[%clk 0:00:38.1]} 28. Qf7+ {[%clk 0:00:13.5]} 28... Kg4 {[%clk
0:00:33.1]} 29. Qe7 {[%clk 0:00:07.9]} 29... Qa5 {[%clk 0:00:26.2]} 30. Rd1
{[%clk 0:00:07.2]} 30... Kf3 {[%clk 0:00:21.5]} 31. Rxd7 {[%clk 0:00:04.4]}
31... Rxd7 {[%clk 0:00:20.2]} 32. Qxd7 {[%clk 0:00:04.2]} 32... Qe1+ {[%clk
0:00:20.1]} 0-1

[Event "*** Titled Tuesday Blitz"]
[Site "Chess.com"]
[Date "2020.05.05"]
[Round "4"]
[White "etesungam"]
[Black "Ashedu66"]
[Result "1/2-1/2"]
[WhiteElo "2380"]
[BlackElo "2159"]
[TimeControl "180+1"]
[EndTime "10:40:25 PDT"]
[Termination "Game drawn by agreement"]

1. d4 {[%clk 0:02:44.8]} 1... d5 {[%clk 0:02:56]} 2. Nf3 {[%clk 0:02:45.2]} 2...
Nf6 {[%clk 0:02:55.6]} 3. c4 {[%clk 0:02:45.4]} 3... c6 {[%clk 0:02:55.6]} 4.
Nc3 {[%clk 0:02:46.3]} 4... e6 {[%clk 0:02:50]} 5. Bg5 {[%clk 0:02:45.4]} 5...
Nbd7 {[%clk 0:02:49.5]} 6. e3 {[%clk 0:02:44]} 6... Qa5 {[%clk 0:02:48.5]} 7.
Bd3 {[%clk 0:02:38.4]} 7... dxc4 {[%clk 0:02:42.6]} 8. Bxc4 {[%clk 0:02:38.4]}
8... Ne4 {[%clk 0:02:41.3]} 9. Bf4 {[%clk 0:02:24.7]} 9... Nxc3 {[%clk 0:02:36]}
10. bxc3 {[%clk 0:02:25.6]} 10... Qxc3+ {[%clk 0:02:34.8]} 11. Nd2 {[%clk
0:02:25.9]} 11... Bb4 {[%clk 0:02:27.7]} 12. Rc1 {[%clk 0:02:25.8]} 12... Qxd2+
{[%clk 0:01:47.4]} 13. Qxd2 {[%clk 0:02:26.7]} 13... Bxd2+ {[%clk 0:01:47.3]}
14. Kxd2 {[%clk 0:02:27.6]} 14... Ke7 {[%clk 0:01:47.3]} 15. a4 {[%clk
0:02:14.9]} 15... Nb6 {[%clk 0:01:39.2]} 16. Bb3 {[%clk 0:02:14.2]} 16... Nd5
{[%clk 0:01:37.5]} 17. Bg3 {[%clk 0:02:10.8]} 17... Bd7 {[%clk 0:01:36.9]} 18.
e4 {[%clk 0:02:10.7]} 18... Nb4 {[%clk 0:01:33.2]} 19. Kc3 {[%clk 0:02:05.5]}
19... a5 {[%clk 0:01:32.3]} 20. Bc7 {[%clk 0:02:05.1]} 20... Rhc8 {[%clk
0:01:26.3]} 21. Bxa5 {[%clk 0:01:57.6]} 21... Rxa5 {[%clk 0:01:13.8]} 22. Kxb4
{[%clk 0:01:57.7]} 22... Rca8 {[%clk 0:01:13.2]} 23. Rc5 {[%clk 0:01:52.3]}
23... b6 {[%clk 0:01:07.9]} 24. Rxa5 {[%clk 0:01:52.1]} 24... Rxa5 {[%clk
0:01:07.1]} 25. Rc1 {[%clk 0:01:51.1]} 25... Ra7 {[%clk 0:00:51.6]} 26. f4
{[%clk 0:01:49.8]} 26... f6 {[%clk 0:00:42.1]} 27. g4 {[%clk 0:01:47.4]} 27...
e5 {[%clk 0:00:37.5]} 28. fxe5 {[%clk 0:01:46.7]} 28... fxe5 {[%clk 0:00:36.9]}
29. dxe5 {[%clk 0:01:46.7]} 29... c5+ {[%clk 0:00:36.9]} 30. Ka3 {[%clk
0:01:37.7]} 30... Bxa4 {[%clk 0:00:32.2]} 31. Bxa4 {[%clk 0:01:36.4]} 31... b5
{[%clk 0:00:32.2]} 32. Rxc5 {[%clk 0:01:34.2]} 32... Rxa4+ {[%clk 0:00:32.1]}
33. Kb3 {[%clk 0:01:32.3]} 33... Rxe4 {[%clk 0:00:31.8]} 34. h3 {[%clk
0:01:29.8]} 34... Re3+ {[%clk 0:00:31.1]} 35. Kb4 {[%clk 0:01:29.7]} 35... Rxh3
{[%clk 0:00:29.8]} 36. Kxb5 {[%clk 0:01:15.6]} 36... Ke6 {[%clk 0:00:23.8]} 37.
g5 {[%clk 0:01:01.9]} 37... Re3 {[%clk 0:00:19.1]} 38. g6 {[%clk 0:00:55.8]}
38... hxg6 {[%clk 0:00:17]} 39. Rc6+ {[%clk 0:00:55]} 39... Kxe5 {[%clk
0:00:13.6]} 40. Rxg6 {[%clk 0:00:54.5]} 40... Kf5 {[%clk 0:00:09.5]} 41. Rxg7
{[%clk 0:00:54]} 41... Rc3 {[%clk 0:00:09.3]} 1/2-1/2

[Event "*** Titled Tuesday Blitz"]
[Site "Chess.com"]
[Date "2020.05.05"]
[Round "4"]
[White "pgradalski"]
[Black "QueenOfTactics90"]
[Result "1-0"]
[WhiteElo "2210"]
[BlackElo "1993"]
[TimeControl "180+1"]
[EndTime "10:40:26 PDT"]
[Termination "pgradalski won by resignation"]

1. e4 {[%clk 0:03:00.9]} 1... c5 {[%clk 0:02:58.6]} 2. c3 {[%clk 0:02:59.4]}
2... Nf6 {[%clk 0:02:55.9]} 3. e5 {[%clk 0:02:57.5]} 3... Nd5 {[%clk 0:02:55.1]}
4. d4 {[%clk 0:02:57.6]} 4... cxd4 {[%clk 0:02:56]} 5. Nf3 {[%clk 0:02:56.3]}
5... Nc6 {[%clk 0:02:53.8]} 6. cxd4 {[%clk 0:02:55.4]} 6... e6 {[%clk
0:02:48.1]} 7. Nc3 {[%clk 0:02:51.5]} 7... Nb6 {[%clk 0:02:41.9]} 8. Bd3 {[%clk
0:02:43.5]} 8... d5 {[%clk 0:02:41.3]} 9. exd6 {[%clk 0:02:26.1]} 9... Bxd6
{[%clk 0:02:38.8]} 10. O-O {[%clk 0:02:25.6]} 10... O-O {[%clk 0:02:38.3]} 11.
Ne4 {[%clk 0:02:20.4]} 11... Be7 {[%clk 0:02:32.2]} 12. Be3 {[%clk 0:01:54.3]}
12... Nd5 {[%clk 0:02:27.4]} 13. Rc1 {[%clk 0:01:50.4]} 13... Ncb4 {[%clk
0:02:19.8]} 14. Bb1 {[%clk 0:01:48]} 14... f5 {[%clk 0:02:15]} 15. Nc5 {[%clk
0:01:29]} 15... b6 {[%clk 0:02:07.8]} 16. Nd3 {[%clk 0:01:13.8]} 16... Ba6
{[%clk 0:01:55.8]} 17. Re1 {[%clk 0:01:01]} 17... Rc8 {[%clk 0:01:16.8]} 18.
Nxb4 {[%clk 0:00:55.7]} 18... Bxb4 {[%clk 0:01:12.3]} 19. Bd2 {[%clk 0:00:49.8]}
19... Bxd2 {[%clk 0:01:07]} 20. Qxd2 {[%clk 0:00:46.2]} 20... Qd6 {[%clk
0:01:00.7]} 21. Ne5 {[%clk 0:00:38.7]} 21... Rxc1 {[%clk 0:00:46.7]} 22. Rxc1
{[%clk 0:00:37.8]} 22... Rc8 {[%clk 0:00:45.6]} 23. Re1 {[%clk 0:00:29.3]} 23...
Re8 {[%clk 0:00:36.6]} 24. a3 {[%clk 0:00:28.6]} 24... Nf6 {[%clk 0:00:24.5]}
25. Ba2 {[%clk 0:00:24.5]} 25... Bc8 {[%clk 0:00:23.2]} 26. Rc1 {[%clk
0:00:18.8]} 26... Ne4 {[%clk 0:00:22.8]} 27. Qe3 {[%clk 0:00:17.4]} 27... Rd8
{[%clk 0:00:20.5]} 28. f3 {[%clk 0:00:15.9]} 28... Nf6 {[%clk 0:00:16.4]} 29.
Rc6 {[%clk 0:00:13.7]} 29... Qxd4 {[%clk 0:00:15.6]} 30. Qxd4 {[%clk 0:00:13.6]}
30... Rxd4 {[%clk 0:00:16.5]} 31. Rxc8+ {[%clk 0:00:13.9]} 1-0

[Event "*** Titled Tuesday Blitz"]
[Site "Chess.com"]
[Date "2020.05.05"]
[Round "4"]
[White "albi1999"]
[Black "Ceejay271"]
[Result "1-0"]
[WhiteElo "2604"]
[BlackElo "2370"]
[TimeControl "180+1"]
[EndTime "10:40:28 PDT"]
[Termination "albi1999 won by resignation"]

1. d4 {[%clk 0:03:00.9]} 1... Nf6 {[%clk 0:02:59.2]} 2. c4 {[%clk 0:03:00.6]}
2... e6 {[%clk 0:02:59.1]} 3. Nf3 {[%clk 0:02:58.4]} 3... d5 {[%clk 0:02:58.5]}
4. g3 {[%clk 0:02:52.3]} 4... Bb4+ {[%clk 0:02:56.6]} 5. Bd2 {[%clk 0:02:48.3]}
5... Be7 {[%clk 0:02:56.1]} 6. Bg2 {[%clk 0:02:48.6]} 6... O-O {[%clk
0:02:56.8]} 7. Qc2 {[%clk 0:02:46.1]} 7... Nbd7 {[%clk 0:02:55.8]} 8. O-O {[%clk
0:02:46.1]} 8... Ne4 {[%clk 0:02:54.8]} 9. Nc3 {[%clk 0:02:32.3]} 9... Nxd2
{[%clk 0:02:53.8]} 10. Nxd2 {[%clk 0:02:33.2]} 10... c6 {[%clk 0:02:53.5]} 11.
Rfd1 {[%clk 0:02:28.4]} 11... Rb8 {[%clk 0:02:51]} 12. e4 {[%clk 0:02:21.7]}
12... dxc4 {[%clk 0:02:34]} 13. Nxc4 {[%clk 0:02:20.7]} 13... b5 {[%clk
0:02:33.5]} 14. Ne3 {[%clk 0:02:20.4]} 14... Bb7 {[%clk 0:02:06.4]} 15. Rac1
{[%clk 0:02:12.5]} 15... a6 {[%clk 0:02:03.1]} 16. a3 {[%clk 0:02:03.4]} 16...
Rc8 {[%clk 0:02:02.1]} 17. d5 {[%clk 0:01:55.3]} 17... cxd5 {[%clk 0:02:00.2]}
18. exd5 {[%clk 0:01:55.3]} 18... exd5 {[%clk 0:01:59.2]} 19. Nexd5 {[%clk
0:01:54.2]} 19... Bxd5 {[%clk 0:01:53.7]} 20. Bxd5 {[%clk 0:01:49.7]} 20... Qc7
{[%clk 0:01:52.1]} 21. Be4 {[%clk 0:01:47.5]} 21... Nf6 {[%clk 0:01:49.1]} 22.
Bf3 {[%clk 0:01:45.5]} 22... Rfd8 {[%clk 0:01:45.8]} 23. Qe2 {[%clk 0:01:41.5]}
23... Rxd1+ {[%clk 0:01:43.5]} 24. Rxd1 {[%clk 0:01:42.4]} 24... Rd8 {[%clk
0:01:42.3]} 25. Rxd8+ {[%clk 0:01:40.6]} 25... Qxd8 {[%clk 0:01:41.6]} 26. Bb7
{[%clk 0:01:39.3]} 26... b4 {[%clk 0:01:19]} 27. axb4 {[%clk 0:01:37.9]} 27...
Bxb4 {[%clk 0:01:19.9]} 28. Bxa6 {[%clk 0:01:37.4]} 28... h6 {[%clk 0:01:15.4]}
29. Bc4 {[%clk 0:01:36.5]} 29... Qd4 {[%clk 0:01:10.8]} 30. Qd3 {[%clk
0:01:31.5]} 30... Bxc3 {[%clk 0:01:10]} 31. bxc3 {[%clk 0:01:30.4]} 31... Qxd3
{[%clk 0:00:50.8]} 32. Bxd3 {[%clk 0:01:31.3]} 32... Kf8 {[%clk 0:00:49.7]} 33.
f3 {[%clk 0:01:30.7]} 33... Nd5 {[%clk 0:00:49.2]} 34. c4 {[%clk 0:01:29.9]}
34... Nb4 {[%clk 0:00:49.1]} 35. Be4 {[%clk 0:01:29.2]} 35... Ke7 {[%clk
0:00:49.3]} 36. Kf2 {[%clk 0:01:29.4]} 36... Kd6 {[%clk 0:00:49.8]} 37. Ke3
{[%clk 0:01:28.7]} 37... Kc5 {[%clk 0:00:50.3]} 38. Bd3 {[%clk 0:01:28.6]} 38...
Nc6 {[%clk 0:00:47.3]} 39. Ke4 {[%clk 0:01:27.3]} 39... Nd4 {[%clk 0:00:44.3]}
40. f4 {[%clk 0:01:25.7]} 40... Ne6 {[%clk 0:00:32.4]} 41. Ke5 {[%clk
0:01:23.7]} 41... Nd4 {[%clk 0:00:24.8]} 42. Ke4 {[%clk 0:01:06.2]} 42... Ne6
{[%clk 0:00:23.7]} 43. Bf1 {[%clk 0:01:06]} 43... Nd4 {[%clk 0:00:22.1]} 44. g4
{[%clk 0:01:04]} 44... Ne6 {[%clk 0:00:20.8]} 45. h4 {[%clk 0:01:03.9]} 45...
Nd4 {[%clk 0:00:18.8]} 46. h5 {[%clk 0:01:02.9]} 46... Ne6 {[%clk 0:00:17.7]}
47. Ke5 {[%clk 0:01:01.1]} 47... Kc6 {[%clk 0:00:14.7]} 48. Bg2+ {[%clk
0:01:00.5]} 48... Kc5 {[%clk 0:00:14.6]} 49. Bd5 {[%clk 0:01:01.1]} 49... Nd8
{[%clk 0:00:11.3]} 50. g5 {[%clk 0:01:01.5]} 1-0

[Event "*** Titled Tuesday Blitz"]
[Site "Chess.com"]
[Date "2020.05.05"]
[Round "4"]
[White "hansen"]
[Black "maciek_92"]
[Result "0-1"]
[WhiteElo "2941"]
[BlackElo "2724"]
[TimeControl "180+1"]
[EndTime "10:40:29 PDT"]
[Termination "maciek_92 won on time"]

1. e4 {[%clk 0:02:59.8]} 1... c5 {[%clk 0:02:59.6]} 2. Nf3 {[%clk 0:02:59.2]}
2... e6 {[%clk 0:02:59.6]} 3. d4 {[%clk 0:02:54]} 3... cxd4 {[%clk 0:03:00.5]}
4. Nxd4 {[%clk 0:02:54.9]} 4... Nc6 {[%clk 0:03:00.6]} 5. Nc3 {[%clk 0:02:54.4]}
5... a6 {[%clk 0:03:00.6]} 6. Nxc6 {[%clk 0:02:53.6]} 6... bxc6 {[%clk
0:03:01.5]} 7. Bd3 {[%clk 0:02:54.3]} 7... d5 {[%clk 0:03:02]} 8. O-O {[%clk
0:02:55.2]} 8... Nf6 {[%clk 0:03:02.3]} 9. Re1 {[%clk 0:02:42]} 9... Be7 {[%clk
0:03:01.9]} 10. Qf3 {[%clk 0:02:37.6]} 10... Bb7 {[%clk 0:02:54.4]} 11. Qg3
{[%clk 0:02:34.8]} 11... Kf8 {[%clk 0:02:53.7]} 12. Bd2 {[%clk 0:02:26.9]} 12...
h5 {[%clk 0:02:53.4]} 13. Rad1 {[%clk 0:02:25.9]} 13... h4 {[%clk 0:02:50.9]}
14. Qh3 {[%clk 0:02:26]} 14... Nd7 {[%clk 0:02:35.3]} 15. Na4 {[%clk 0:02:23.2]}
15... e5 {[%clk 0:02:22.8]} 16. exd5 {[%clk 0:01:13.2]} 16... cxd5 {[%clk
0:02:23.7]} 17. Ba5 {[%clk 0:01:13.6]} 17... Qe8 {[%clk 0:01:59.2]} 18. Bf5
{[%clk 0:01:06.6]} 18... Bc6 {[%clk 0:01:59]} 19. Nc3 {[%clk 0:00:52.5]} 19...
d4 {[%clk 0:01:38.4]} 20. Nd5 {[%clk 0:00:52.2]} 20... Bxd5 {[%clk 0:01:28.6]}
21. Bxd7 {[%clk 0:00:52.4]} 21... Qb8 {[%clk 0:01:29.2]} 22. c3 {[%clk 0:00:45]}
22... Rh6 {[%clk 0:00:58.1]} 23. cxd4 {[%clk 0:00:42.6]} 23... e4 {[%clk
0:00:58.3]} 24. Qf5 {[%clk 0:00:34.5]} 24... Qb7 {[%clk 0:00:46.2]} 25. Re3
{[%clk 0:00:20.4]} 25... g6 {[%clk 0:00:39.9]} 26. Qh3 {[%clk 0:00:12.5]} 26...
Kg7 {[%clk 0:00:28.6]} 27. Bc3 {[%clk 0:00:11.1]} 27... f5 {[%clk 0:00:23.6]}
28. Ba4 {[%clk 0:00:10]} 28... Rf8 {[%clk 0:00:17.7]} 29. Ree1 {[%clk
0:00:03.5]} 29... g5 {[%clk 0:00:15]} 30. Qe3 {[%clk 0:00:01.7]} 30... f4 {[%clk
0:00:15.1]} 31. Qc1 {[%clk 0:00:01.8]} 31... g4 {[%clk 0:00:14.8]} 32. Bb3
{[%clk 0:00:01.2]} 32... g3 {[%clk 0:00:13.5]} 0-1